[Event "Late-Titled-Tuesday-Blitz-May-14-2024"]
[Site "Chess.com"]
[Date "2024.05.14"]
[Round "3"]
[White "Iuckyducky"]
[Black "Smiechu"]
[Result "1-0"]
[WhiteElo "2295"]
[BlackElo "2470"]
[TimeControl "180+1"]
[EndTime "14:29:58 PDT"]
[Termination "Iuckyducky won on time"]

1. e4 {[%clk 0:02:57.2]} 1... c5 {[%clk 0:02:59.8]} 2. Nf3 {[%clk 0:02:57.1]}
2... g6 {[%clk 0:03:00.7]} 3. d4 {[%clk 0:02:57.1]} 3... cxd4 {[%clk 0:03:01.6]}
4. Qxd4 {[%clk 0:02:57.9]} 4... Nf6 {[%clk 0:03:01]} 5. Nc3 {[%clk 0:02:57.1]}
5... Nc6 {[%clk 0:03:01.2]} 6. Qa4 {[%clk 0:02:57.8]} 6... d6 {[%clk 0:03:00.7]}
7. e5 {[%clk 0:02:55.7]} 7... dxe5 {[%clk 0:03:01]} 8. Nxe5 {[%clk 0:02:56.6]}
8... Bd7 {[%clk 0:03:01.6]} 9. Nxd7 {[%clk 0:02:43.6]} 9... Nxd7 {[%clk
0:03:02.5]} 10. Be3 {[%clk 0:02:31.6]} 10... Bg7 {[%clk 0:03:02.3]} 11. Rd1
{[%clk 0:02:28]} 11... O-O {[%clk 0:03:01.5]} 12. Be2 {[%clk 0:02:23.8]} 12...
Qc8 {[%clk 0:02:48.1]} 13. O-O {[%clk 0:02:15.7]} 13... Nb6 {[%clk 0:02:46.2]}
14. Qa3 {[%clk 0:02:00.1]} 14... e6 {[%clk 0:02:37.8]} 15. Nb5 {[%clk 0:01:40]}
15... Nd5 {[%clk 0:02:33.8]} 16. Bc5 {[%clk 0:01:40.1]} 16... Rd8 {[%clk
0:02:26.6]} 17. c4 {[%clk 0:01:40.7]} 17... Nf4 {[%clk 0:02:22.6]} 18. Bf3
{[%clk 0:01:41.3]} 18... a6 {[%clk 0:02:11.6]} 19. Nd6 {[%clk 0:01:33.6]} 19...
Qc7 {[%clk 0:02:03.7]} 20. Qe3 {[%clk 0:01:33.5]} 20... e5 {[%clk 0:01:24.4]}
21. Bb6 {[%clk 0:01:23.1]} 21... Qxd6 {[%clk 0:01:24.6]} 22. Rxd6 {[%clk
0:01:21.6]} 22... Rxd6 {[%clk 0:01:25.1]} 23. Bc5 {[%clk 0:01:13.3]} 23... Rd3
{[%clk 0:01:24.3]} 24. Qe1 {[%clk 0:00:50.6]} 24... Rad8 {[%clk 0:01:24.1]} 25.
Bxc6 {[%clk 0:00:43.7]} 25... bxc6 {[%clk 0:01:21]} 26. Be3 {[%clk 0:00:34.5]}
26... Ne6 {[%clk 0:01:10.9]} 27. Qe2 {[%clk 0:00:30.3]} 27... f5 {[%clk
0:01:09.4]} 28. g3 {[%clk 0:00:20.9]} 28... g5 {[%clk 0:01:00.9]} 29. Qh5 {[%clk
0:00:15.8]} 29... f4 {[%clk 0:00:58.1]} 30. Bb6 {[%clk 0:00:12.7]} 30... R8d7
{[%clk 0:00:42.7]} 31. Qe8+ {[%clk 0:00:11.6]} 31... Nf8 {[%clk 0:00:42.8]} 32.
Bc5 {[%clk 0:00:10.1]} 32... f3 {[%clk 0:00:28]} 33. Bxf8 {[%clk 0:00:09.9]}
33... Bxf8 {[%clk 0:00:27.6]} 34. Qe6+ {[%clk 0:00:10.3]} 34... Rf7 {[%clk
0:00:18.6]} 35. Qxe5 {[%clk 0:00:10.5]} 35... h6 {[%clk 0:00:18.9]} 36. h4
{[%clk 0:00:08.3]} 36... Re7 {[%clk 0:00:18.9]} 37. Qf5 {[%clk 0:00:05.7]} 37...
Rd2 {[%clk 0:00:14.6]} 38. hxg5 {[%clk 0:00:06]} 38... Rxb2 {[%clk 0:00:13.7]}
39. Qxf3 {[%clk 0:00:05.3]} 39... Rf7 {[%clk 0:00:13.6]} 40. Qxc6 {[%clk
0:00:04.7]} 40... hxg5 {[%clk 0:00:13.8]} 41. Qg6+ {[%clk 0:00:05.2]} 41... Rg7
{[%clk 0:00:13.3]} 42. Qe6+ {[%clk 0:00:05.9]} 42... Rf7 {[%clk 0:00:13.6]} 43.
c5 {[%clk 0:00:04.8]} 43... Bxc5 {[%clk 0:00:11.9]} 44. Qc8+ {[%clk 0:00:04.8]}
44... Bf8 {[%clk 0:00:12.2]} 45. Qxa6 {[%clk 0:00:05.5]} 45... Kg7 {[%clk
0:00:09.3]} 46. a4 {[%clk 0:00:05.7]} 46... Bc5 {[%clk 0:00:08.9]} 47. a5 {[%clk
0:00:02.6]} 47... Rbxf2 {[%clk 0:00:00.4]} 48. Rxf2 {[%clk 0:00:03.1]} 1-0

[Event "Late-Titled-Tuesday-Blitz-May-14-2024"]
[Site "Chess.com"]
[Date "2024.05.14"]
[Round "3"]
[White "maracayo"]
[Black "Byniolus"]
[Result "0-1"]
[WhiteElo "2354"]
[BlackElo "2762"]
[TimeControl "180+1"]
[EndTime "14:29:59 PDT"]
[Termination "Byniolus won by resignation"]

1. e4 {[%clk 0:02:59.7]} 1... d6 {[%clk 0:02:58.9]} 2. Nf3 {[%clk 0:02:59]} 2...
Nf6 {[%clk 0:02:59.8]} 3. d3 {[%clk 0:02:58.8]} 3... Bg4 {[%clk 0:02:59.9]} 4.
Nbd2 {[%clk 0:02:58.7]} 4... e6 {[%clk 0:03:00.1]} 5. Be2 {[%clk 0:02:58.9]}
5... Be7 {[%clk 0:03:00.3]} 6. O-O {[%clk 0:02:59.3]} 6... d5 {[%clk 0:03:00.6]}
7. c3 {[%clk 0:02:59]} 7... O-O {[%clk 0:03:00.4]} 8. Re1 {[%clk 0:02:58.1]}
8... c5 {[%clk 0:03:00.7]} 9. Qb3 {[%clk 0:02:55.9]} 9... Qc7 {[%clk 0:02:57.2]}
10. exd5 {[%clk 0:02:54.4]} 10... exd5 {[%clk 0:02:56.7]} 11. h3 {[%clk
0:02:54.1]} 11... Bf5 {[%clk 0:02:53.2]} 12. d4 {[%clk 0:02:51.7]} 12... Nbd7
{[%clk 0:02:47.7]} 13. Nf1 {[%clk 0:02:48.9]} 13... h6 {[%clk 0:02:44]} 14. Ng3
{[%clk 0:02:44.4]} 14... Bh7 {[%clk 0:02:36.1]} 15. Nh4 {[%clk 0:02:32.4]} 15...
Rfe8 {[%clk 0:02:33.1]} 16. Nhf5 {[%clk 0:02:27.3]} 16... Bf8 {[%clk 0:02:32.4]}
17. Bd2 {[%clk 0:02:23.6]} 17... a6 {[%clk 0:02:27.4]} 18. Bf3 {[%clk
0:02:15.3]} 18... Qc6 {[%clk 0:02:15.2]} 19. Rxe8 {[%clk 0:02:03.3]} 19... Rxe8
{[%clk 0:02:16.1]} 20. Re1 {[%clk 0:02:02.6]} 20... Rxe1+ {[%clk 0:02:13.3]} 21.
Bxe1 {[%clk 0:02:03.5]} 21... c4 {[%clk 0:01:44]} 22. Qd1 {[%clk 0:02:01.3]}
22... Qe6 {[%clk 0:01:39.8]} 23. Ne3 {[%clk 0:01:53.4]} 23... b5 {[%clk
0:01:39.2]} 24. a4 {[%clk 0:01:40.7]} 24... Nb6 {[%clk 0:01:29.2]} 25. axb5
{[%clk 0:01:37.4]} 25... axb5 {[%clk 0:01:30.1]} 26. Bd2 {[%clk 0:01:05.9]}
26... Bd6 {[%clk 0:01:22.8]} 27. Ng4 {[%clk 0:00:54.2]} 27... Bxg3 {[%clk
0:01:14.2]} 28. Nxf6+ {[%clk 0:00:52.3]} 28... Qxf6 {[%clk 0:01:15.1]} 29. fxg3
{[%clk 0:00:51.9]} 29... Be4 {[%clk 0:01:14.6]} 30. Bg4 {[%clk 0:00:25.4]} 30...
Qg6 {[%clk 0:00:57]} 31. Bf4 {[%clk 0:00:20.1]} 31... Na4 {[%clk 0:00:56.1]} 32.
Qd2 {[%clk 0:00:19.7]} 32... Bc2 {[%clk 0:00:42.9]} 33. Bf3 {[%clk 0:00:18.6]}
33... Be4 {[%clk 0:00:38.4]} 34. Bd1 {[%clk 0:00:17.7]} 34... Nb6 {[%clk
0:00:35.9]} 35. Bc7 {[%clk 0:00:16.7]} 35... Nd7 {[%clk 0:00:34.5]} 36. Qf4
{[%clk 0:00:15.7]} 36... Nf8 {[%clk 0:00:32.4]} 37. Qd6 {[%clk 0:00:14.4]} 37...
Ne6 {[%clk 0:00:27.7]} 38. Bg4 {[%clk 0:00:14.3]} 38... Bf5 {[%clk 0:00:20.3]}
39. Bf3 {[%clk 0:00:10.3]} 39... Be4 {[%clk 0:00:20.1]} 40. Bg4 {[%clk
0:00:10.3]} 40... f5 {[%clk 0:00:20.2]} 41. Bf3 {[%clk 0:00:06.3]} 41... Kh7
{[%clk 0:00:19.6]} 42. Qe5 {[%clk 0:00:05.4]} 42... Bxf3 {[%clk 0:00:10.9]} 43.
gxf3 {[%clk 0:00:05]} 43... f4 {[%clk 0:00:11.8]} 44. g4 {[%clk 0:00:04.9]}
44... Nxc7 {[%clk 0:00:11]} 45. Qxc7 {[%clk 0:00:04.5]} 45... Qb1+ {[%clk
0:00:11.9]} 46. Kg2 {[%clk 0:00:04.7]} 46... Qxb2+ {[%clk 0:00:12.8]} 47. Kg1
{[%clk 0:00:05.1]} 47... Qc1+ {[%clk 0:00:10.4]} 48. Kg2 {[%clk 0:00:05.4]}
48... Qd2+ {[%clk 0:00:09.9]} 49. Kg1 {[%clk 0:00:05.1]} 49... Qe1+ {[%clk
0:00:10.2]} 50. Kg2 {[%clk 0:00:05.5]} 50... Qg3+ {[%clk 0:00:10.5]} 51. Kf1
{[%clk 0:00:06.3]} 51... Qxf3+ {[%clk 0:00:10.9]} 52. Ke1 {[%clk 0:00:07]} 52...
Qe3+ {[%clk 0:00:10.4]} 53. Kd1 {[%clk 0:00:06.7]} 53... f3 {[%clk 0:00:10.7]}
0-1

[Event "Late-Titled-Tuesday-Blitz-May-14-2024"]
[Site "Chess.com"]
[Date "2024.05.14"]
[Round "3"]
[White "LLRChess"]
[Black "MarkusRagger"]
[Result "1-0"]
[WhiteElo "2540"]
[BlackElo "2808"]
[TimeControl "180+1"]
[EndTime "14:30:01 PDT"]
[Termination "LLRChess won by resignation"]

1. e4 {[%clk 0:03:00.9]} 1... e5 {[%clk 0:02:58.1]} 2. Nf3 {[%clk 0:03:00.4]}
2... Nc6 {[%clk 0:02:58]} 3. Bc4 {[%clk 0:02:59.7]} 3... Nf6 {[%clk 0:02:56.8]}
4. d4 {[%clk 0:02:59.4]} 4... exd4 {[%clk 0:02:53.5]} 5. e5 {[%clk 0:02:59.7]}
5... d5 {[%clk 0:02:50.5]} 6. Bb5 {[%clk 0:02:59.8]} 6... Nd7 {[%clk 0:02:44.7]}
7. O-O {[%clk 0:02:56.8]} 7... Be7 {[%clk 0:02:43.7]} 8. Bxc6 {[%clk 0:02:54.5]}
8... bxc6 {[%clk 0:02:43.9]} 9. Nxd4 {[%clk 0:02:53.7]} 9... Nb8 {[%clk
0:02:42.5]} 10. Nc3 {[%clk 0:02:52]} 10... c5 {[%clk 0:02:38.5]} 11. Nde2 {[%clk
0:02:44.9]} 11... Bb7 {[%clk 0:02:33.5]} 12. Nf4 {[%clk 0:02:42.7]} 12... d4
{[%clk 0:02:30.5]} 13. Nce2 {[%clk 0:02:39.2]} 13... O-O {[%clk 0:02:22.4]} 14.
c3 {[%clk 0:02:34.2]} 14... Nc6 {[%clk 0:02:14.9]} 15. Qb3 {[%clk 0:02:17.8]}
15... Rb8 {[%clk 0:02:08.2]} 16. Qa4 {[%clk 0:02:17.8]} 16... d3 {[%clk
0:01:48]} 17. Ng3 {[%clk 0:01:55.1]} 17... Nxe5 {[%clk 0:01:47.2]} 18. Be3
{[%clk 0:01:53]} 18... Bd6 {[%clk 0:01:36.9]} 19. Nf5 {[%clk 0:01:44.7]} 19...
Qf6 {[%clk 0:01:11.6]} 20. Nxd6 {[%clk 0:01:35.8]} 20... cxd6 {[%clk 0:01:12.5]}
21. Qxa7 {[%clk 0:01:31]} 21... Nf3+ {[%clk 0:00:48.6]} 22. gxf3 {[%clk
0:00:49.8]} 22... Bxf3 {[%clk 0:00:43.5]} 23. h3 {[%clk 0:00:48.1]} 23... Rxb2
{[%clk 0:00:32.4]} 24. Kh2 {[%clk 0:00:41]} 24... d2 {[%clk 0:00:18.8]} 25. Qa3
{[%clk 0:00:33.6]} 25... Rc2 {[%clk 0:00:18.6]} 26. Rg1 {[%clk 0:00:20.7]} 26...
Rxc3 {[%clk 0:00:18]} 27. Qa6 {[%clk 0:00:18.8]} 27... Rc2 {[%clk 0:00:15.3]}
28. Qd3 {[%clk 0:00:17.1]} 28... Rb2 {[%clk 0:00:12.3]} 29. Bxd2 {[%clk
0:00:15.5]} 29... Qe5 {[%clk 0:00:12.7]} 30. Be3 {[%clk 0:00:14.7]} 30... c4
{[%clk 0:00:12]} 31. Qd4 {[%clk 0:00:14]} 31... Rc2 {[%clk 0:00:09.5]} 32. Qxe5
{[%clk 0:00:08.1]} 32... dxe5 {[%clk 0:00:10.4]} 33. Ng2 {[%clk 0:00:08.2]}
33... Rb8 {[%clk 0:00:09.2]} 34. Ne1 {[%clk 0:00:08.3]} 34... Re2 {[%clk
0:00:07]} 35. Nxf3 {[%clk 0:00:08.3]} 35... Rbb2 {[%clk 0:00:07.7]} 36. Kg3
{[%clk 0:00:08.4]} 36... f5 {[%clk 0:00:06.8]} 37. Nxe5 {[%clk 0:00:07.4]} 37...
c3 {[%clk 0:00:07.4]} 38. Rgc1 {[%clk 0:00:06.4]} 38... c2 {[%clk 0:00:07.3]}
39. Nd3 {[%clk 0:00:06.3]} 39... Rb4 {[%clk 0:00:07.1]} 40. Nxb4 {[%clk
0:00:05.9]} 40... g5 {[%clk 0:00:06.8]} 41. Bxg5 {[%clk 0:00:05.6]} 41... Re4
{[%clk 0:00:06]} 42. Be3 {[%clk 0:00:06.1]} 42... Rxb4 {[%clk 0:00:05.9]} 43.
Rxc2 {[%clk 0:00:06.8]} 43... Kf7 {[%clk 0:00:06.3]} 44. Rd1 {[%clk 0:00:06.5]}
44... h5 {[%clk 0:00:05.5]} 45. Rd6 {[%clk 0:00:06.7]} 45... h4+ {[%clk
0:00:05.9]} 46. Kf3 {[%clk 0:00:06.2]} 46... f4 {[%clk 0:00:06.6]} 47. Rc7+
{[%clk 0:00:05.8]} 47... Ke8 {[%clk 0:00:06.7]} 48. Rh6 {[%clk 0:00:06.4]} 48...
Kd8 {[%clk 0:00:06.4]} 49. Rg7 {[%clk 0:00:06.6]} 1-0

[Event "Late-Titled-Tuesday-Blitz-May-14-2024"]
[Site "Chess.com"]
[Date "2024.05.14"]
[Round "3"]
[White "marik_spb"]
[Black "Umumba_FM"]
[Result "1-0"]
[WhiteElo "2510"]
[BlackElo "2670"]
[TimeControl "180+1"]
[EndTime "14:30:01 PDT"]
[Termination "marik_spb won by checkmate"]

1. e4 {[%clk 0:02:55.3]} 1... e5 {[%clk 0:02:58.3]} 2. Nf3 {[%clk 0:02:55.1]}
2... d6 {[%clk 0:02:58.9]} 3. Bc4 {[%clk 0:02:54.8]} 3... Nf6 {[%clk 0:02:57.4]}
4. Nc3 {[%clk 0:02:53.8]} 4... Be7 {[%clk 0:02:56.6]} 5. O-O {[%clk 0:02:53.4]}
5... O-O {[%clk 0:02:56.1]} 6. d4 {[%clk 0:02:51.9]} 6... exd4 {[%clk 0:02:57]}
7. Nxd4 {[%clk 0:02:51.2]} 7... Re8 {[%clk 0:02:47.4]} 8. Bg5 {[%clk 0:02:40.7]}
8... c6 {[%clk 0:02:34.9]} 9. Bf4 {[%clk 0:02:30.3]} 9... Bf8 {[%clk 0:02:26.1]}
10. Re1 {[%clk 0:02:28.3]} 10... g6 {[%clk 0:02:23.6]} 11. a4 {[%clk 0:02:24.1]}
11... Nbd7 {[%clk 0:02:21.9]} 12. Nf3 {[%clk 0:02:14.4]} 12... h6 {[%clk
0:01:58.1]} 13. Bxd6 {[%clk 0:02:08.1]} 13... Nb6 {[%clk 0:01:54]} 14. Bxf8
{[%clk 0:02:06.4]} 14... Nxc4 {[%clk 0:01:36.8]} 15. Qxd8 {[%clk 0:02:04.7]}
15... Rxd8 {[%clk 0:01:37.7]} 16. Be7 {[%clk 0:02:04.8]} 16... Bg4 {[%clk
0:01:26]} 17. Bxf6 {[%clk 0:02:03]} 17... Re8 {[%clk 0:01:26.2]} 18. b3 {[%clk
0:01:59.1]} 18... Nb6 {[%clk 0:01:23.3]} 19. Rad1 {[%clk 0:01:57.5]} 19... g5
{[%clk 0:01:13.3]} 20. h3 {[%clk 0:01:54.9]} 20... Bh5 {[%clk 0:01:11.6]} 21. a5
{[%clk 0:01:53.8]} 21... Nc8 {[%clk 0:01:09.8]} 22. e5 {[%clk 0:01:52.8]} 22...
Ne7 {[%clk 0:01:08.7]} 23. Rd7 {[%clk 0:01:43.3]} 23... Ng6 {[%clk 0:01:04.5]}
24. g4 {[%clk 0:01:37.9]} 24... Nf8 {[%clk 0:01:01.4]} 25. Rxb7 {[%clk
0:01:30.9]} 25... Bg6 {[%clk 0:01:01.8]} 26. Nd4 {[%clk 0:01:30]} 26... c5
{[%clk 0:01:00]} 27. Nf5 {[%clk 0:01:29.6]} 27... Kh7 {[%clk 0:00:59.3]} 28. Rd1
{[%clk 0:01:20.8]} 28... Rec8 {[%clk 0:00:52.9]} 29. Nd6 {[%clk 0:01:15.8]}
29... Rcb8 {[%clk 0:00:50.8]} 30. a6 {[%clk 0:01:10.1]} 30... Bxc2 {[%clk
0:00:48.7]} 31. Rd2 {[%clk 0:01:09.7]} 31... Bg6 {[%clk 0:00:47.8]} 32. Nxf7
{[%clk 0:01:08]} 32... Rxb7 {[%clk 0:00:47]} 33. axb7 {[%clk 0:01:07.8]} 33...
Rb8 {[%clk 0:00:47.9]} 34. Nd6 {[%clk 0:01:05]} 34... Ne6 {[%clk 0:00:43.7]} 35.
Nd5 {[%clk 0:00:58.8]} 35... Nd4 {[%clk 0:00:38.7]} 36. Kg2 {[%clk 0:00:51.7]}
36... Nxb3 {[%clk 0:00:37.3]} 37. Rb2 {[%clk 0:00:49]} 37... c4 {[%clk
0:00:37.7]} 38. e6 {[%clk 0:00:43.6]} 38... Nc5 {[%clk 0:00:28.7]} 39. f3 {[%clk
0:00:41.1]} 39... a5 {[%clk 0:00:25]} 40. e7 {[%clk 0:00:41.2]} 40... a4 {[%clk
0:00:25.3]} 41. e8=Q {[%clk 0:00:33.7]} 41... Bxe8 {[%clk 0:00:25.1]} 42. Nxe8
{[%clk 0:00:34.4]} 42... a3 {[%clk 0:00:25.1]} 43. Ra2 {[%clk 0:00:31.5]} 43...
Rxb7 {[%clk 0:00:25.1]} 44. Rxa3 {[%clk 0:00:26.1]} 44... Ne6 {[%clk 0:00:22.6]}
45. Be5 {[%clk 0:00:24.6]} 45... Kg6 {[%clk 0:00:19.9]} 46. Ra6 {[%clk
0:00:21.5]} 46... c3 {[%clk 0:00:19.8]} 47. Rxe6+ {[%clk 0:00:19.6]} 47... Kh7
{[%clk 0:00:20.4]} 48. Bxc3 {[%clk 0:00:12.9]} 48... Ra7 {[%clk 0:00:19.8]} 49.
Ndf6+ {[%clk 0:00:07.1]} 49... Kg6 {[%clk 0:00:19.9]} 50. Nh5+ {[%clk
0:00:07.2]} 50... Kf7 {[%clk 0:00:19.8]} 51. Re2 {[%clk 0:00:04.5]} 51... Ra3
{[%clk 0:00:19.7]} 52. Nd6+ {[%clk 0:00:04.3]} 52... Kf8 {[%clk 0:00:18.1]} 53.
Re8# {[%clk 0:00:04.5]} 1-0

[Event "Late-Titled-Tuesday-Blitz-May-14-2024"]
[Site "Chess.com"]
[Date "2024.05.14"]
[Round "3"]
[White "Artem_Koval"]
[Black "ViIIagra"]
[Result "0-1"]
[WhiteElo "2590"]
[BlackElo "2844"]
[TimeControl "180+1"]
[EndTime "14:30:05 PDT"]
[Termination "ViIIagra won by checkmate"]

1. d4 {[%clk 0:03:00.9]} 1... d6 {[%clk 0:02:57.4]} 2. e4 {[%clk 0:03:00.6]}
2... g6 {[%clk 0:02:58]} 3. Nc3 {[%clk 0:03:00.7]} 3... a6 {[%clk 0:02:58.2]} 4.
Nf3 {[%clk 0:02:59.6]} 4... b5 {[%clk 0:02:54.2]} 5. Bd3 {[%clk 0:02:59.3]} 5...
Nd7 {[%clk 0:02:52.3]} 6. Be3 {[%clk 0:02:57.3]} 6... Bb7 {[%clk 0:02:51.2]} 7.
a4 {[%clk 0:02:57.3]} 7... b4 {[%clk 0:02:49.7]} 8. Ne2 {[%clk 0:02:57.9]} 8...
Ngf6 {[%clk 0:02:43.4]} 9. Ng3 {[%clk 0:02:58.2]} 9... Bg7 {[%clk 0:02:44.1]}
10. O-O {[%clk 0:02:55.7]} 10... O-O {[%clk 0:02:44.1]} 11. Qd2 {[%clk
0:02:54.6]} 11... c5 {[%clk 0:02:35.3]} 12. c3 {[%clk 0:02:53.7]} 12... c4
{[%clk 0:02:17.8]} 13. Bxc4 {[%clk 0:02:45.9]} 13... bxc3 {[%clk 0:02:17.3]} 14.
bxc3 {[%clk 0:02:42]} 14... Nxe4 {[%clk 0:02:15.2]} 15. Nxe4 {[%clk 0:02:42.2]}
15... Bxe4 {[%clk 0:02:16.1]} 16. Qe2 {[%clk 0:02:34.7]} 16... Nb6 {[%clk
0:02:07.2]} 17. Bxa6 {[%clk 0:02:19.2]} 17... Nd5 {[%clk 0:02:04]} 18. Ng5
{[%clk 0:02:03.4]} 18... Nxc3 {[%clk 0:02:02.5]} 19. Qc4 {[%clk 0:02:03.6]}
19... Bd5 {[%clk 0:02:02.1]} 20. Qd3 {[%clk 0:01:54.8]} 20... h6 {[%clk
0:01:36.2]} 21. Nh3 {[%clk 0:01:48.4]} 21... Qa5 {[%clk 0:01:07.9]} 22. Bc4
{[%clk 0:01:17.1]} 22... Bxc4 {[%clk 0:01:05]} 23. Qxc4 {[%clk 0:01:18]} 23...
Rfc8 {[%clk 0:01:05]} 24. Qd3 {[%clk 0:01:16.9]} 24... Nxa4 {[%clk 0:01:05]} 25.
Nf4 {[%clk 0:01:09.3]} 25... Qf5 {[%clk 0:00:58.7]} 26. Qd2 {[%clk 0:00:44.6]}
26... Nb6 {[%clk 0:00:50]} 27. Rxa8 {[%clk 0:00:40.8]} 27... Rxa8 {[%clk
0:00:50.9]} 28. Qb4 {[%clk 0:00:37.6]} 28... Rb8 {[%clk 0:00:44.5]} 29. h3
{[%clk 0:00:25.3]} 29... Nd7 {[%clk 0:00:44.4]} 30. Qa4 {[%clk 0:00:22.4]} 30...
Nf6 {[%clk 0:00:44.4]} 31. Qa7 {[%clk 0:00:22.1]} 31... Re8 {[%clk 0:00:44]} 32.
Rc1 {[%clk 0:00:20.8]} 32... g5 {[%clk 0:00:33.1]} 33. Ne2 {[%clk 0:00:18.5]}
33... Nd5 {[%clk 0:00:32.8]} 34. Ng3 {[%clk 0:00:18.9]} 34... Qd3 {[%clk
0:00:25.7]} 35. Re1 {[%clk 0:00:14.1]} 35... Nxe3 {[%clk 0:00:22.6]} 36. Rxe3
{[%clk 0:00:13.8]} 36... Qxd4 {[%clk 0:00:15.9]} 37. Rxe7 {[%clk 0:00:10.2]}
37... Qxa7 {[%clk 0:00:06.6]} 38. Rxa7 {[%clk 0:00:09.8]} 38... Re1+ {[%clk
0:00:07.3]} 39. Kh2 {[%clk 0:00:09.9]} 39... Be5 {[%clk 0:00:07.6]} 40. Ra4
{[%clk 0:00:05.1]} 40... Kg7 {[%clk 0:00:08]} 41. h4 {[%clk 0:00:05.5]} 41...
Kg6 {[%clk 0:00:07.1]} 42. hxg5 {[%clk 0:00:05.3]} 42... hxg5 {[%clk 0:00:08]}
43. Kh3 {[%clk 0:00:05.7]} 43... f5 {[%clk 0:00:08.2]} 44. f3 {[%clk 0:00:06.1]}
44... Ra1 {[%clk 0:00:05.1]} 45. Rc4 {[%clk 0:00:03.8]} 45... Rb1 {[%clk
0:00:04.6]} 46. Rc6 {[%clk 0:00:02.8]} 46... Kf6 {[%clk 0:00:04.6]} 47. Rc8
{[%clk 0:00:02.3]} 47... Ke6 {[%clk 0:00:04.5]} 48. Rf8 {[%clk 0:00:02.6]} 48...
d5 {[%clk 0:00:04.1]} 49. Ne2 {[%clk 0:00:00.7]} 49... Rh1# {[%clk 0:00:03.7]}
0-1

[Event "Late-Titled-Tuesday-Blitz-May-14-2024"]
[Site "Chess.com"]
[Date "2024.05.14"]
[Round "3"]
[White "jaramsdal"]
[Black "Davidalhesa2007"]
[Result "1/2-1/2"]
[WhiteElo "2359"]
[BlackElo "1935"]
[TimeControl "180+1"]
[EndTime "14:30:05 PDT"]
[Termination "Game drawn by repetition"]

1. e4 {[%clk 0:02:57]} 1... c5 {[%clk 0:03:00.1]} 2. a3 {[%clk 0:02:56.8]} 2...
g6 {[%clk 0:02:57.9]} 3. Bc4 {[%clk 0:02:55.9]} 3... Bg7 {[%clk 0:02:57.9]} 4.
Nc3 {[%clk 0:02:55.1]} 4... a6 {[%clk 0:02:57.4]} 5. Nge2 {[%clk 0:02:46.1]}
5... b5 {[%clk 0:02:41.5]} 6. Ba2 {[%clk 0:02:14.8]} 6... Bb7 {[%clk 0:02:37.9]}
7. d4 {[%clk 0:02:14.4]} 7... cxd4 {[%clk 0:01:41.2]} 8. Nxd4 {[%clk 0:02:15.3]}
8... e6 {[%clk 0:01:38.3]} 9. O-O {[%clk 0:02:11.6]} 9... Ne7 {[%clk 0:01:38.2]}
10. Kh1 {[%clk 0:01:55.3]} 10... Nbc6 {[%clk 0:01:36.1]} 11. Be3 {[%clk
0:01:52.1]} 11... O-O {[%clk 0:01:33.3]} 12. f4 {[%clk 0:01:52.1]} 12... Nxd4
{[%clk 0:01:28]} 13. Bxd4 {[%clk 0:01:51.6]} 13... Bxd4 {[%clk 0:01:26.9]} 14.
Qxd4 {[%clk 0:01:52.5]} 14... d5 {[%clk 0:01:24.3]} 15. f5 {[%clk 0:01:40.2]}
15... dxe4 {[%clk 0:01:20.2]} 16. Qxd8 {[%clk 0:01:37.3]} 16... Rfxd8 {[%clk
0:01:16.4]} 17. fxe6 {[%clk 0:01:38.2]} 17... fxe6 {[%clk 0:01:11.6]} 18. Bxe6+
{[%clk 0:01:39.1]} 18... Kh8 {[%clk 0:00:51.1]} 19. Rf7 {[%clk 0:01:40]} 19...
Re8 {[%clk 0:00:45.1]} 20. Bd7 {[%clk 0:01:36.6]} 20... Kg8 {[%clk 0:00:41.4]}
21. Bxe8 {[%clk 0:01:36.2]} 21... Rxe8 {[%clk 0:00:39.2]} 22. Raf1 {[%clk
0:01:37.1]} 22... e3 {[%clk 0:00:35.9]} 23. R7f4 {[%clk 0:01:34.7]} 23... Nf5
{[%clk 0:00:33.8]} 24. Kg1 {[%clk 0:01:31.7]} 24... h5 {[%clk 0:00:29]} 25. g4
{[%clk 0:01:27.7]} 25... hxg4 {[%clk 0:00:26.3]} 26. Rxg4 {[%clk 0:01:28.6]}
26... Kg7 {[%clk 0:00:23.7]} 27. Rxf5 {[%clk 0:01:27.8]} 27... Bc8 {[%clk
0:00:20.1]} 28. Rff4 {[%clk 0:00:59.8]} 28... Bxg4 {[%clk 0:00:20.5]} 29. Rxg4
{[%clk 0:01:00.2]} 29... e2 {[%clk 0:00:21.4]} 30. Nxe2 {[%clk 0:00:58.8]} 30...
Rxe2 {[%clk 0:00:22.3]} 31. Rg2 {[%clk 0:00:59.6]} 31... Re1+ {[%clk 0:00:21.9]}
32. Kf2 {[%clk 0:00:59.7]} 32... Rb1 {[%clk 0:00:22.7]} 33. b3 {[%clk
0:00:59.1]} 33... Ra1 {[%clk 0:00:21.8]} 34. Ke3 {[%clk 0:00:54.1]} 34... Rxa3
{[%clk 0:00:21]} 35. Kd4 {[%clk 0:00:51.1]} 35... b4 {[%clk 0:00:12.4]} 36. Kc4
{[%clk 0:00:49.1]} 36... a5 {[%clk 0:00:12.6]} 37. Kb5 {[%clk 0:00:44.6]} 37...
Ra2 {[%clk 0:00:12.6]} 38. Rd2 {[%clk 0:00:44.9]} 38... Kh6 {[%clk 0:00:12.3]}
39. h3 {[%clk 0:00:40.1]} 39... Kh5 {[%clk 0:00:11.8]} 40. Rd3 {[%clk
0:00:37.6]} 40... g5 {[%clk 0:00:10.6]} 41. Re3 {[%clk 0:00:36.8]} 41... Kh4
{[%clk 0:00:09.7]} 42. Rd3 {[%clk 0:00:37.2]} 42... Rxc2 {[%clk 0:00:06.3]} 43.
Kxa5 {[%clk 0:00:37.2]} 43... Rc3 {[%clk 0:00:06.5]} 44. Rd4+ {[%clk 0:00:36.1]}
44... Kxh3 {[%clk 0:00:06.9]} 45. Kxb4 {[%clk 0:00:36.7]} 45... Rf3 {[%clk
0:00:05.8]} 46. Rd5 {[%clk 0:00:36.8]} 46... g4 {[%clk 0:00:06.2]} 47. Rh5+
{[%clk 0:00:36.7]} 47... Kg3 {[%clk 0:00:06]} 48. Kc5 {[%clk 0:00:37.6]} 48...
Rxb3 {[%clk 0:00:05.9]} 49. Kc4 {[%clk 0:00:37.5]} 49... Rb1 {[%clk 0:00:06]}
50. Kd3 {[%clk 0:00:37.5]} 50... Rd1+ {[%clk 0:00:05.7]} 51. Ke2 {[%clk
0:00:37.7]} 51... Ra1 {[%clk 0:00:05.5]} 52. Rb5 {[%clk 0:00:36.3]} 52... Ra2+
{[%clk 0:00:05.5]} 53. Kf1 {[%clk 0:00:35.6]} 53... Ra3 {[%clk 0:00:04.7]} 54.
Rb1 {[%clk 0:00:33.9]} 54... Kf3 {[%clk 0:00:02.5]} 55. Kg1 {[%clk 0:00:34]}
55... Kg3 {[%clk 0:00:01.8]} 56. Rc1 {[%clk 0:00:34.2]} 56... Rf3 {[%clk
0:00:02.5]} 57. Rb1 {[%clk 0:00:34.6]} 57... Rd3 {[%clk 0:00:03]} 58. Rc1 {[%clk
0:00:34.7]} 58... Re3 {[%clk 0:00:03.4]} 59. Rb1 {[%clk 0:00:34.8]} 59... Kh3
{[%clk 0:00:03.8]} 60. Rc1 {[%clk 0:00:34.2]} 60... Kg3 {[%clk 0:00:04.2]} 61.
Rb1 {[%clk 0:00:34.5]} 61... Ra3 {[%clk 0:00:04.7]} 62. Rc1 {[%clk 0:00:34.8]}
62... Kf3 {[%clk 0:00:04.4]} 63. Rb1 {[%clk 0:00:35]} 63... Kg3 {[%clk
0:00:04.9]} 1/2-1/2